fUST/lending_fUST_20250222
["ID","MTS","AMOUNT","RATE_DAILY","PERIOD"]
[354100597,1740239443174,-410.44416,0.0001599,2]
[354100598,1740239443183,-933.691799,0.0001599,2]
[354100600,1740239443192,-4549.139468,0.0001599,2]
[354100602,1740239443202,-4549.139468,0.0001599,2]
[354100604,1740239443211,-151.0,0.0001599,2]
[354100607,1740239443221,-935.794534,0.0001599,2]
[354100609,1740239443230,-935.794534,0.0001599,2]
[354100611,1740239443239,-470.542967,0.0001599,2]
[354100613,1740239443248,-470.542967,0.0001599,2]
[354100615,1740239443257,-1909.70527,0.0001599,2]
[354100617,1740239443266,-936.590506,0.0001599,2]
[354100619,1740239443275,-1909.70527,0.0001599,2]
[354100621,1740239443284,-936.590506,0.0001599,2]
[354100623,1740239443292,-532.606098,0.0001599,2]
[354100625,1740239443302,-532.606098,0.0001599,2]
[354100627,1740239443311,-201.260577,0.0001599,2]
[354100629,1740239443319,-1387.39458991,0.00015991,2]
[354100631,1740239443330,-9341.5961573,0.00016,2]
[354100633,1740239443339,-50000.0,0.00016,2]
[354100635,1740239443348,-199.0,0.00016,5]
[354100637,1740239443357,-800.0,0.00016,2]
[354100639,1740239443367,-3000.0,0.00016,2]
[354100641,1740239443376,-317.176293,0.00016,2]
[354100643,1740239443385,-317.176293,0.00016,2]
[354100645,1740239443395,-168.975352,0.00016,2]
[354100647,1740239443405,-168.975352,0.00016,2]
[354100649,1740239443415,-687.783641,0.00016,2]
[354100651,1740239443424,-687.783641,0.00016,2]
[354100653,1740239443433,-349.30033,0.00016,2]
[354100655,1740239443442,-349.30033,0.00016,2]
[354100657,1740239443452,-500.541319,0.00016,2]
[354100659,1740239443462,-500.541319,0.00016,2]
[354100661,1740239443471,-151.0,0.00016,2]
[354100663,1740239443480,-319.492634,0.00016,2]
[354100665,1740239443489,-319.492634,0.00016,2]
[354100667,1740239443498,-582.482368,0.00016,2]
[354100669,1740239443507,-841.150994,0.00016,2]
[354100671,1740239443518,-582.482368,0.00016,2]
[354100673,1740239443528,-841.150994,0.00016,2]
[354100675,1740239443538,-380.7,0.00016,2]
[354100677,1740239443548,-380.7,0.00016,2]
[354100679,1740239443557,-1008.622642,0.00016,2]
[354100681,1740239443567,-1008.622642,0.00016,2]
[354100683,1740239443576,-165.211748,0.00016,2]
[354100685,1740239443585,-165.211748,0.00016,2]
[354100687,1740239443595,-157.974792,0.00016,2]
[354100689,1740239443605,-157.974792,0.00016,2]
[354100691,1740239443614,-157.974792,0.00016,2]
[354100693,1740239443624,-157.974792,0.00016,2]
[354100695,1740239443633,-160.85231,0.00016,2]
[354100697,1740239443642,-160.85231,0.00016,2]
[354100699,1740239443651,-160.85231,0.00016,2]
[354100701,1740239443661,-160.85231,0.00016,2]
[354100703,1740239443670,-151.0,0.00016,2]
[354100705,1740239443680,-151.0,0.00016,2]
[354100707,1740239443689,-151.0,0.00016,2]
[354100709,1740239443699,-151.0,0.00016,2]
[354100711,1740239443708,-407.648454,0.00016,2]
[354100713,1740239443717,-407.648454,0.00016,2]
[354100715,1740239443727,-407.648454,0.00016,2]
[354100717,1740239443736,-407.648454,0.00016,2]
[354100719,1740239443746,-893.356808,0.00016,2]
[354100721,1740239443755,-893.356808,0.00016,2]
[354100723,1740239443764,-893.356808,0.00016,2]
[354100725,1740239443773,-893.356808,0.00016,2]
[354100727,1740239443782,-151.0,0.00016,2]
[354100729,1740239443792,-151.0,0.00016,2]
[354100731,1740239443801,-550.34171,0.00016,2]
[354100733,1740239443811,-550.34171,0.00016,2]
[354100735,1740239443823,-550.34171,0.00016,2]
[354100737,1740239443832,-550.34171,0.00016,2]
[354100739,1740239443842,-2650.635549,0.00016,2]
[354100741,1740239443851,-2650.635549,0.00016,2]
[354100743,1740239443860,-371.295,0.00016,2]
[354100745,1740239443869,-371.295,0.00016,2]
[354100747,1740239443878,-381.160488,0.00016,2]
[354100749,1740239443887,-381.160488,0.00016,2]
[354100751,1740239443898,-157.899175,0.00016,2]
[354100753,1740239443908,-151.0,0.00016,2]
[354100755,1740239443918,-396.547806,0.00016,2]
[354100757,1740239443928,-151.0,0.00016,2]
[354100759,1740239443937,-396.547806,0.00016,2]
[354100761,1740239443946,-396.547806,0.00016,2]
[354100763,1740239443955,-580.94746,0.00016,2]
[354100765,1740239443964,-580.94746,0.00016,2]
[354100767,1740239443973,-580.94746,0.00016,2]
[354100769,1740239443982,-580.94746,0.00016,2]
[354100771,1740239443991,-202.827712,0.00016,2]
[354100773,1740239444000,-202.827712,0.00016,2]
[354100775,1740239444009,-202.827712,0.00016,2]
[354100777,1740239444018,-202.827712,0.00016,2]
[354100779,1740239444027,-311.546142,0.00016,2]
[354100781,1740239444036,-311.546142,0.00016,2]
[354100783,1740239444045,-314.412662,0.00016,2]
[354100785,1740239444055,-311.546142,0.00016,2]
[354100787,1740239444063,-314.412662,0.00016,2]
[354100789,1740239444073,-311.546142,0.00016,2]
[354100791,1740239444082,-314.412662,0.00016,2]
[354100793,1740239444091,-314.412662,0.00016,2]
[354100795,1740239444099,-151.0,0.00016,2]
[354100797,1740239444108,-151.0,0.00016,2]
[354100799,1740239444118,-690.352791,0.00016,7]
[354100801,1740239444127,-160.809802,0.00016,2]
[354100803,1740239444136,-160.809802,0.00016,2]
[354100805,1740239444145,-160.809802,0.00016,2]
[354100807,1740239444154,-160.809802,0.00016,2]
[354100809,1740239444163,-410.44416,0.00016,2]
[354100811,1740239444172,-933.691799,0.00016,2]
[354100813,1740239444182,-933.691799,0.00016,2]
[354100815,1740239444191,-410.44416,0.00016,2]
[354100817,1740239444200,-933.691799,0.00016,2]
[354100819,1740239444208,-151.0,0.00016,2]
[354100821,1740239444217,-933.691799,0.00016,2]
[354100823,1740239444227,-151.0,0.00016,2]
[354100825,1740239444236,-4549.139468,0.00016,2]
[354100827,1740239444245,-4549.139468,0.00016,2]
[354100829,1740239444255,-4549.139468,0.00016,2]
[354100831,1740239444264,-4549.139468,0.00016,2]
[354100833,1740239444274,-151.0,0.00016,2]
[354100835,1740239444283,-151.0,0.00016,2]
[354100837,1740239444292,-151.0,0.00016,2]
[354100839,1740239444301,-151.0,0.00016,2]
[354100841,1740239444310,-622.753277,0.00016,2]
[354100843,1740239444319,-622.753277,0.00016,2]
[354100845,1740239444328,-622.753277,0.00016,2]
[354100847,1740239444337,-622.753277,0.00016,2]
[354100849,1740239444346,-151.0,0.00016,2]
[354100851,1740239444355,-151.0,0.00016,2]
[354100853,1740239444364,-935.794534,0.00016,2]
[354100855,1740239444375,-935.794534,0.00016,2]
[354100857,1740239444384,-2146.243538,0.00016,2]
[354100859,1740239444393,-935.794534,0.00016,2]
[354100861,1740239444402,-2146.243538,0.00016,2]
[354100863,1740239444412,-935.794534,0.00016,2]
[354100865,1740239444421,-2146.243538,0.00016,2]
[354100867,1740239444431,-2146.243538,0.00016,2]
[354100869,1740239444440,-470.542967,0.00016,2]
[354100871,1740239444449,-470.542967,0.00016,2]
[354100873,1740239444458,-470.542967,0.00016,2]
[354100874,1740239444468,-470.542967,0.00016,2]
[354100876,1740239444477,-1909.70527,0.00016,2]
[354100878,1740239444487,-1909.70527,0.00016,2]
[354100881,1740239444496,-936.590506,0.00016,2]
[354100882,1740239444505,-936.590506,0.00016,2]
[354100884,1740239444514,-1909.70527,0.00016,2]
[354100886,1740239444523,-1909.70527,0.00016,2]
[354100888,1740239444532,-936.590506,0.00016,2]
[354100890,1740239444542,-892.470465,0.00016,2]
[354100892,1740239444551,-936.590506,0.00016,2]
[354100894,1740239444560,-892.470465,0.00016,2]
[354100896,1740239444569,-892.470465,0.00016,2]
[354100898,1740239444578,-892.470465,0.00016,2]
[354100900,1740239444587,-151.0,0.00016,2]
[354100902,1740239444596,-151.0,0.00016,2]
[354100903,1740239444605,-532.606098,0.00016,2]
[354100904,1740239444615,-532.606098,0.00016,2]
[354100905,1740239444624,-532.606098,0.00016,2]
[354100906,1740239444633,-532.606098,0.00016,2]
[354100907,1740239444644,-1111.1,0.00016009,2]
[354100908,1740239444653,-3000.0,0.0001601,2]
[354100909,1740239444662,-579.39977404,0.00016012,2]
[354100910,1740239444671,-3000.0,0.0001602,2]
[354100911,1740239444680,-3000.0,0.0001603,2]
[354100912,1740239444690,-168.975352,0.0001603,2]
[354100913,1740239444699,-168.975352,0.0001603,2]
[354100914,1740239444709,-687.783641,0.0001603,2]
[354100915,1740239444718,-687.78364,0.0001603,2]
[354100916,1740239444728,-349.30033,0.0001603,2]
[354100918,1740239444737,-349.300323,0.0001603,2]
[354100920,1740239444746,-500.541319,0.0001603,2]
[354100922,1740239444755,-500.541328,0.0001603,2]
[354100924,1740239444765,-151.0,0.0001603,2]
[354100926,1740239444774,-319.492634,0.0001603,2]
[354100927,1740239444783,-319.492624,0.0001603,2]
[354100929,1740239444792,-582.482368,0.0001603,2]
[354100931,1740239444801,-841.150994,0.0001603,2]
[354100933,1740239444811,-582.482374,0.0001603,2]
[354100936,1740239444825,-841.151003,0.0001603,2]
[354100938,1740239444835,-380.7,0.0001603,2]
[354100939,1740239444843,-380.7,0.0001603,2]
[354100942,1740239444852,-4908.81412926,0.0001604,5]
[354100943,1740239444862,-3000.0,0.0001604,2]
[354100945,1740239444871,-1008.622642,0.0001604,2]
[354100947,1740239444880,-1008.622642,0.0001604,2]
[354100949,1740239444890,-165.211748,0.0001604,2]
[354100951,1740239444900,-165.211748,0.0001604,2]
[354100953,1740239444909,-2650.635549,0.0001604,2]
[354100955,1740239444918,-2650.635549,0.0001604,2]
[354100957,1740239444927,-371.295,0.0001604,2]
[354100968,1740239445005,-371.295,0.0001604,2]
[354100970,1740239445023,-381.160488,0.0001604,2]
[354100972,1740239445033,-381.160488,0.0001604,2]
[354100974,1740239445042,-151.0,0.0001604,2]
[354100976,1740239445051,-151.0,0.0001604,2]
[354100978,1740239445061,-410.44416,0.0001604,2]
[354100980,1740239445070,-410.44416,0.0001604,2]
[354100982,1740239445079,-60963.60418454,0.0001605,5]
[354100984,1740239445088,-3000.0,0.0001605,2]
[354100986,1740239445097,-3000.0,0.0001606,2]
[354100988,1740239445107,-3000.0,0.0001607,2]
[354100990,1740239445117,-3000.0,0.0001608,2]
[354100992,1740239445126,-3000.0,0.0001609,2]
[354100994,1740239445135,-1111.1,0.00016091,2]
[354100996,1740239445145,-500.0,0.00016096,2]
[354100998,1740239445154,-500.0,0.00016096,2]
[354101000,1740239445163,-748.8,0.00016096,2]
[354101002,1740239445172,-500.0,0.00016096,2]
[354101004,1740239445182,-317.176293,0.00016098,2]
[354101006,1740239445191,-317.176293,0.00016098,2]
[354101009,1740239445201,-3000.0,0.000161,2]
[354101011,1740239445211,-3000.0,0.0001611,2]
[354101013,1740239445220,-168.975352,0.0001611,2]
[354101015,1740239445230,-168.975352,0.0001611,2]
[354101017,1740239445238,-151.0,0.0001611,2]
[354101019,1740239445247,-935.794534,0.0001611,2]
[354101021,1740239445257,-935.794534,0.0001611,2]
[354101023,1740239445266,-936.590506,0.0001611,2]
[354101025,1740239445275,-936.590506,0.0001611,2]
[354101027,1740239445284,-579.39977404,0.00016112,2]
[354101029,1740239445293,-3000.0,0.0001612,2]
[354101031,1740239445302,-157.974792,0.0001612,2]
[354101033,1740239445311,-157.974792,0.0001612,2]
[354101035,1740239445321,-160.85231,0.0001612,2]
[354101037,1740239445330,-160.85231,0.0001612,2]
[354101039,1740239445339,-151.0,0.0001612,2]
[354101041,1740239445348,-151.475525,0.0001612,2]
[354101043,1740239445357,-407.648454,0.0001612,2]
[354101045,1740239445366,-893.356808,0.0001612,2]
[354101046,1740239445376,-407.648454,0.0001612,2]
[354101048,1740239445385,-893.356808,0.0001612,2]
[354101050,1740239445394,-151.0,0.0001612,2]
[354101053,1740239445403,-550.34171,0.0001612,2]
[354101055,1740239445412,-550.34171,0.0001612,2]
[354101057,1740239445421,-314.412662,0.0001612,2]
[354101059,1740239445431,-314.412662,0.0001612,2]
[354101061,1740239445440,-151.0,0.0001612,2]
[354101063,1740239445449,-160.809802,0.0001612,2]
[354101064,1740239445459,-160.809802,0.0001612,2]
[354101067,1740239445469,-933.691799,0.0001612,2]
[354101069,1740239445478,-933.691799,0.0001612,2]
[354101071,1740239445487,-151.0,0.0001612,2]
[354101073,1740239445496,-151.0,0.0001612,2]
[354101075,1740239445506,-157.858604,0.0001612,2]
[354101077,1740239445515,-622.753277,0.0001612,2]
[354101079,1740239445526,-622.753277,0.0001612,2]
[354101081,1740239445535,-2146.243538,0.0001612,2]
[354101083,1740239445545,-2146.243538,0.0001612,2]
[354101085,1740239445554,-1909.70527,0.0001612,2]
[354101087,1740239445564,-1909.70527,0.0001612,2]
[354101089,1740239445573,-892.470465,0.0001612,2]
[354101091,1740239445582,-892.470465,0.0001612,2]
[354101093,1740239445592,-532.606098,0.0001612,2]
[354101095,1740239445601,-532.606098,0.0001612,2]
[354101098,1740239445611,-3000.0,0.0001613,2]
[354101100,1740239445620,-151.0,0.0001613,2]
[354101102,1740239445629,-230.773,0.00016131,2]
[354101104,1740239445639,-1970.0,0.00016131,2]
[354101106,1740239445648,-538.0,0.00016131,2]
[354101108,1740239445658,-2287.0,0.00016131,2]
[354101110,1740239445667,-250.0,0.00016131,2]
[354101112,1740239445677,-438.76,0.00016131,2]
[354101114,1740239445687,-415.266,0.00016131,2]
[354101117,1740239445696,-3879.204039,0.0001614,2]
[354101120,1740239445705,-396.547806,0.0001614,2]
[354101122,1740239445715,-396.547806,0.0001614,2]
[354101125,1740239445724,-580.94746,0.0001614,2]
[354101128,1740239445733,-580.94746,0.0001614,2]
[354101130,1740239445742,-202.827712,0.0001614,2]
[354101132,1740239445751,-202.827712,0.0001614,2]
[354101134,1740239445760,-311.546142,0.0001614,2]
[354101136,1740239445769,-311.546142,0.0001614,2]
[354101138,1740239445778,-4549.139468,0.0001614,2]
[354101140,1740239445788,-4549.139468,0.0001614,2]
[354101142,1740239445797,-470.542967,0.0001614,2]
[354101144,1740239445807,-470.542967,0.0001614,2]
[354101146,1740239445821,-733.38,0.00016164,2]
[354101148,1740239445831,-1111.1,0.00016173,2]
[354101150,1740239445840,-1387.39458991,0.00016196,2]
[354101152,1740239445851,-529.2296825,0.000162,2]
[354101154,1740239445860,-529.22968248,0.000162,2]
[354101156,1740239445869,-529.22968248,0.000162,2]
[354101158,1740239445878,-529.22968248,0.000162,2]
[354101160,1740239445888,-579.39977404,0.00016212,2]
[354101162,1740239445899,-1111.1,0.00016255,2]
[354101164,1740239445908,-248.67233922,0.000163,2]
[354101166,1740239445918,-579.39977404,0.00016312,2]
[354101168,1740239445927,-10000.0,0.0001633,2]
[354101170,1740239445936,-1111.1,0.00016337,2]
[354101172,1740239445946,-500.0,0.0001637,2]
[354101174,1740239445955,-500.0,0.0001637,2]
[354101176,1740239445964,-640.65889872,0.0001637,2]
[354101178,1740239445974,-2500.0,0.00016382,2]
[354101180,1740239445983,-317.176293,0.00016391,2]
[354101182,1740239445992,-317.176293,0.00016391,2]
[354101184,1740239446001,-168.975352,0.00016391,2]
[354101186,1740239446010,-168.975352,0.00016391,2]
[354101188,1740239446020,-1008.622642,0.00016391,2]
[354101190,1740239446029,-1008.622642,0.00016391,2]
[354101192,1740239446038,-165.211748,0.00016391,2]
[354101194,1740239446048,-165.211748,0.00016391,2]
[354101196,1740239446057,-2500.0,0.00016391,2]
[354101199,1740239446067,-2500.0,0.00016391,2]
[354101201,1740239446076,-189.0,0.000164,2]
[354101203,1740239446085,-2500.0,0.000164,2]
[354101205,1740239446094,-2500.0,0.000164,2]
[354101207,1740239446103,-2650.635549,0.000164,2]
[354101208,1740239446112,-2650.635549,0.000164,2]
[354101210,1740239446121,-371.295,0.000164,2]
[354101212,1740239446130,-371.295,0.000164,2]
[354101214,1740239446139,-151.0,0.000164,2]
[354101216,1740239446148,-151.0,0.000164,2]
[354101219,1740239446159,-529.22968248,0.000164,2]
[354101221,1740239446168,-410.44416,0.000164,2]
[354101223,1740239446177,-410.44416,0.000164,2]
[354101224,1740239446186,-9197.05687348,0.000164,2]
[354101227,1740239446196,-2500.0,0.000164,2]
[354101229,1740239446205,-1387.39458991,0.000164,2]
[354101230,1740239446214,-579.39977404,0.00016412,2]
[354101233,1740239446224,-1111.1,0.00016419,2]
[354101235,1740239446233,-4824.79771657,0.00016432,2]
[354101237,1740239446243,-168.975352,0.00016432,2]
[354101239,1740239446252,-168.975362,0.00016432,2]
[354101241,1740239446261,-381.160488,0.00016432,2]
[354101243,1740239446270,-381.160488,0.00016432,2]
[354101245,1740239446280,-1909.70527,0.00016432,2]
[354101247,1740239446289,-1909.70527,0.00016432,2]
[354101249,1740239446298,-532.606098,0.00016432,2]
[354101250,1740239446313,-532.606098,0.00016432,2]
[354101252,1740239446322,-317.176293,0.00016438,2]
[354101254,1740239446331,-317.176293,0.00016438,2]
[354101256,1740239446340,-317.176293,0.00016438,2]
[354101258,1740239446349,-317.176293,0.00016438,2]
[354101261,1740239446360,-317.176293,0.00016438,2]
[354101263,1740239446369,-317.176293,0.00016438,2]
[354101265,1740239446378,-317.176293,0.00016438,2]
[354101266,1740239446387,-317.176285,0.00016438,2]
[354101268,1740239446396,-1008.622642,0.00016438,2]
[354101270,1740239446406,-1008.622642,0.00016438,2]
[354101273,1740239446417,-1008.622642,0.00016438,2]
[354101275,1740239446426,-1008.622642,0.00016438,2]
[354101277,1740239446435,-165.211748,0.00016438,2]
[354101279,1740239446445,-165.211748,0.00016438,2]
[354101281,1740239446458,-165.211748,0.00016438,2]
[354101283,1740239446467,-165.211748,0.00016438,2]
[354101284,1740239446476,-157.974792,0.00016438,2]
[354101286,1740239446485,-157.974792,0.00016438,2]
[354101288,1740239446495,-157.974792,0.00016438,2]
[354101290,1740239446505,-157.974792,0.00016438,2]
[354101293,1740239446514,-160.85231,0.00016438,2]
[354101294,1740239446525,-160.85231,0.00016438,2]
[354101296,1740239446535,-160.85231,0.00016438,2]
[354101298,1740239446544,-160.85231,0.00016438,2]
[354101300,1740239446554,-151.0,0.00016438,2]
[354101303,1740239446563,-151.0,0.00016438,2]
[354101305,1740239446573,-154.037813,0.00016438,2]
[354101307,1740239446582,-407.648454,0.00016438,2]
[354101309,1740239446592,-407.648454,0.00016438,2]
[354101311,1740239446602,-407.648454,0.00016438,2]
[354101313,1740239446611,-893.356808,0.00016438,2]
[354101315,1740239446621,-893.356808,0.00016438,2]
[354101317,1740239446630,-407.648454,0.00016438,2]
[354101319,1740239446640,-893.356808,0.00016438,2]
[354101321,1740239446650,-407.648454,0.00016438,2]
[354101323,1740239446659,-407.648454,0.00016438,2]
[354101325,1740239446669,-893.356808,0.00016438,2]
[354101327,1740239446679,-893.356808,0.00016438,2]
[354101329,1740239446689,-893.356808,0.00016438,2]
[354101331,1740239446699,-151.0,0.00016438,2]
[354101333,1740239446709,-151.0,0.00016438,2]
[354101335,1740239446718,-193.464242,0.00016438,2]
[354101337,1740239446727,-500.0,0.00016438,3]
[354101339,1740239446738,-500.0,0.00016438,3]
[354101341,1740239446747,-500.0,0.00016438,3]
[354101343,1740239446756,-315.11686728,0.00016438,3]
[354101345,1740239446765,-550.34171,0.00016438,2]
[354101347,1740239446775,-550.34171,0.00016438,2]
[354101349,1740239446784,-550.34171,0.00016438,2]
[354101351,1740239446793,-550.34171,0.00016438,2]
[354101353,1740239446803,-550.34171,0.00016438,2]
[354101355,1740239446816,-550.34171,0.00016438,2]
[354101357,1740239446825,-2650.635549,0.00016438,2]
[354101359,1740239446835,-2650.635549,0.00016438,2]
[354101361,1740239446845,-2650.635549,0.00016438,2]
[354101363,1740239446855,-2650.635549,0.00016438,2]
[354101365,1740239446864,-371.295,0.00016438,2]
[354101367,1740239446873,-371.295,0.00016438,2]
[354101369,1740239446882,-371.295,0.00016438,2]
[354101371,1740239446893,-371.295,0.00016438,2]
[354101373,1740239446903,-381.160488,0.00016438,2]
[354101375,1740239446912,-381.160488,0.00016438,2]
[354101377,1740239446921,-381.160488,0.00016438,2]
[354101379,1740239446931,-381.160488,0.00016438,2]
[354101381,1740239446940,-151.0,0.00016438,2]
[354101383,1740239446950,-151.0,0.00016438,2]
[354101385,1740239446959,-396.547806,0.00016438,2]
[354101387,1740239446968,-396.547806,0.00016438,2]
[354101389,1740239446979,-204.183641,0.00016438,2]
[354101391,1740239446988,-396.547806,0.00016438,2]
[354101401,1740239447062,-396.547806,0.00016438,2]
[354101403,1740239447079,-580.94746,0.00016438,2]
[354101405,1740239447088,-580.94746,0.00016438,2]
[354101407,1740239447097,-580.94746,0.00016438,2]
[354101409,1740239447107,-580.94746,0.00016438,2]
[354101411,1740239447116,-202.827712,0.00016438,2]
[354101413,1740239447125,-202.827712,0.00016438,2]
[354101415,1740239447135,-202.827712,0.00016438,2]
[354101417,1740239447144,-202.827712,0.00016438,2]
[354101419,1740239447154,-311.546142,0.00016438,2]
[354101421,1740239447163,-311.546142,0.00016438,2]
[354101423,1740239447172,-314.412662,0.00016438,2]
[354101425,1740239447182,-314.412662,0.00016438,2]
[354101427,1740239447191,-311.546142,0.00016438,2]
[354101429,1740239447200,-311.546142,0.00016438,2]
[354101431,1740239447210,-314.412662,0.00016438,2]
[354101433,1740239447219,-314.412662,0.00016438,2]
[354101435,1740239447228,-195.576123,0.00016438,2]
[354101437,1740239447238,-160.809802,0.00016438,2]
[354101439,1740239447247,-160.809802,0.00016438,2]
[354101441,1740239447256,-160.809802,0.00016438,2]
[354101443,1740239447266,-160.809802,0.00016438,2]
[354101445,1740239447275,-410.44416,0.00016438,2]
[354101447,1740239447284,-410.44416,0.00016438,2]
[354101449,1740239447294,-933.691799,0.00016438,2]
[354101451,1740239447304,-933.691799,0.00016438,2]
[354101452,1740239447319,-410.44416,0.00016438,2]
[354101455,1740239447329,-410.44416,0.00016438,2]
[354101457,1740239447339,-151.0,0.00016438,2]
[354101459,1740239447348,-151.0,0.00016438,2]
[354101461,1740239447358,-933.691799,0.00016438,2]
[354101463,1740239447368,-933.691799,0.00016438,2]
[354101465,1740239447378,-4549.139468,0.00016438,2]
[354101467,1740239447387,-4549.139468,0.00016438,2]
[354101469,1740239447396,-4549.139468,0.00016438,2]
[354101471,1740239447405,-4549.139468,0.00016438,2]
[354101473,1740239447416,-151.0,0.00016438,2]
[354101475,1740239447425,-151.0,0.00016438,2]
[354101477,1740239447436,-622.753277,0.00016438,2]
[354101479,1740239447446,-622.753277,0.00016438,2]
[354101481,1740239447456,-622.753277,0.00016438,2]
[354101483,1740239447466,-622.753277,0.00016438,2]
[354101485,1740239447476,-240.361959,0.00016438,2]
[354101487,1740239447486,-935.794534,0.00016438,2]
[354101489,1740239447495,-935.794534,0.00016438,2]
[354101491,1740239447506,-2146.243538,0.00016438,2]
[354101493,1740239447516,-935.794534,0.00016438,2]
[354101495,1740239447526,-2146.243538,0.00016438,2]
[354101497,1740239447535,-935.794534,0.00016438,2]
[354101499,1740239447546,-2146.243538,0.00016438,2]
[354101501,1740239447556,-2146.243538,0.00016438,2]
[354101503,1740239447570,-470.542967,0.00016438,2]
[354101505,1740239447584,-470.542967,0.00016438,2]
[354101507,1740239447597,-470.542967,0.00016438,2]
[354101509,1740239447609,-470.542967,0.00016438,2]
[354101512,1740239447619,-1909.70527,0.00016438,2]
[354101514,1740239447628,-936.590506,0.00016438,2]
[354101516,1740239447638,-936.590506,0.00016438,2]
[354101518,1740239447649,-1909.70527,0.00016438,2]
[354101520,1740239447658,-936.590506,0.00016438,2]
[354101522,1740239447668,-892.470465,0.00016438,2]
[354101524,1740239447679,-936.590506,0.00016438,2]
[354101526,1740239447688,-892.470465,0.00016438,2]
[354101528,1740239447697,-892.470465,0.00016438,2]
[354101529,1740239447706,-892.470465,0.00016438,2]
[354101531,1740239447716,-151.0,0.00016438,2]
[354101534,1740239447727,-151.0,0.00016438,2]
[354101535,1740239447736,-151.0,0.00016438,2]
[354101537,1740239447745,-532.606098,0.00016438,2]
[354101539,1740239447754,-532.606098,0.00016438,2]
[354101541,1740239447764,-210.455,0.00016438,2]
[354101543,1740239447773,-210.455,0.00016438,2]
[354101545,1740239447782,-210.455,0.00016438,2]
[354101547,1740239447792,-210.455,0.00016438,2]
[354101549,1740239447801,-210.455,0.00016438,2]
[354101552,1740239447811,-210.455,0.00016438,2]
[354101553,1740239447824,-210.455,0.00016438,2]
[354101556,1740239447833,-210.455,0.00016438,2]
[354101558,1740239447843,-210.455,0.00016438,2]
[354101560,1740239447852,-210.455,0.00016438,2]
[354101562,1740239447862,-210.455,0.00016438,2]
[354101564,1740239447871,-210.455,0.00016438,2]
[354101566,1740239447879,-210.455,0.00016438,2]
[354101567,1740239447889,-210.455,0.00016438,2]
[354101569,1740239447899,-5000.0,0.00016438,2]
[354101571,1740239447909,-5000.0,0.00016438,2]
[354101573,1740239447918,-5000.0,0.00016438,2]
[354101575,1740239447927,-5000.0,0.00016438,2]
[354101577,1740239447936,-5000.0,0.00016438,2]
[354101579,1740239447946,-5000.0,0.00016438,2]
[354101582,1740239447955,-5000.0,0.00016438,2]
[354101584,1740239447965,-5000.0,0.00016438,2]
[354101586,1740239447974,-5000.0,0.00016438,2]
[354101588,1740239447982,-5000.0,0.00016438,2]
[354101590,1740239447992,-5000.0,0.00016438,2]
[354101592,1740239448009,-5000.0,0.00016438,2]
[354101594,1740239448022,-5000.0,0.00016438,2]
[354101595,1740239448032,-5000.0,0.00016438,2]
[354101596,1740239448042,-5000.0,0.00016438,2]
[354101597,1740239448052,-5000.0,0.00016438,2]
[354101598,1740239448062,-5000.0,0.00016438,2]
[354101599,1740239448071,-5000.0,0.00016438,2]